Cogmind - Beta 13 @@@ ROGUE MODE // 2024.04.15 @ 01:10:34 Player: scumgirle Result: Self-destructed Performance ------------- Evolutions (1) 500 Regions Visited (2) 400 Robots Destroyed (22) 110 Value Destroyed (594) 594 Prototype IDs (0) 0 Alien Tech Used (0) 0 Bonus (24) 24 TOTAL SCORE: 1628 Bonus ------- High Alert Combat Kills 24 Cogmind --------- Core Integrity 261/400 Matter 169/300 Energy 117/250 System Corruption 0% Temperature Critical (762) Movement Rolling (105) Ox1 Location -9/Materials Parts ------- > --- POWER (2) -------- Ion Engine > --- PROPULSION (2) --- Armored Wheel Armored Wheel > --- UTILITY (3) ------ Small Storage Unit Signal Interpreter > --- WEAPON (2) ------- Beam Cannon > --- INVENTORY (8) ---- Armored Wheel Armored Wheel Armored Wheel Armored Wheel Heat Sink Structural Scanner Improved Sensor Array Beam Rifle Peak State ------------ > --- POWER ------------ Ion Engine Ion Engine > --- PROPULSION ------- Armored Wheel Armored Wheel > --- UTILITY ---------- Small Storage Unit Improved Sensor Array Signal Interpreter > --- WEAPON ----------- Beam Cannon Beam Cannon > --- INVENTORY -------- Armored Wheel Armored Wheel Heat Sink Structural Scanner Improved Sensor Array Small Laser Small Laser [Rating: 14] Favorites ----------- Power Ion Engine Engine Ion Engine Propulsion Wheel Wheel Wheel Utility Small Storage Unit Device Structural Scanner Storage Small Storage Unit Processor Signal Interpreter Weapon Assault Rifle Energy Cannon Beam Cannon Ballistic Gun Assault Rifle Build | -11 -10 -9 ------- Run | Yrd Mat Mat Slots Evolved 2 | . . 2 Power 1 | . . 1 Propulsion . | . . . Utility 1 | . . 1 Weapon . | . . . Parts Attached 16 | 6 3 7 Power 3 | 1 1 1 Engine 3 | 1 1 1 Core . | . . . Reactor . | . . . Propulsion 5 | 2 1 2 Treads . | . . . Leg . | . . . Wheel 5 | 2 1 2 Hover . | . . . Flight . | . . . Utility 4 | 1 1 2 Device 2 | . 1 1 Storage 1 | 1 . . Processor 1 | . . 1 Hackware . | . . . Protection . | . . . Artifact . | . . . Weapon 4 | 2 . 2 Energy Gun . | . . . Energy Cannon 2 | . . 2 Ballistic Gun 2 | 2 . . Ballistic Cannon . | . . . Launcher . | . . . Special Weapon . | . . . Impact Weapon . | . . . Slashing Weapon . | . . . Piercing Weapon . | . . . Special Melee Weapon . | . . . Unidentified Prototypes . | . . . Parts Lost 4 | . 1 3 Power 1 | . . 1 Propulsion 1 | . 1 . Utility 1 | . . 1 Weapon 1 | . . 1 Highest Loss Streak 3 | . 1 3 To Critical Strikes . | . . . Average Slot Usage (%) 92 | . 94 90 Engine 16 | . 14 19 Wheel 22 | . 27 16 Device 10 | . 9 11 Storage 12 | . 14 11 Processor 4 | . . 9 Energy Cannon 9 | . . 20 Ballistic Gun 15 | . 28 1 Naked Turns . | . . . Heaviest Build 22 | 14 15 22 Greatest Support 26 | 26 26 26 Greatest Overweight (x) 2 | . . 2 Average Overweight (x) . | . . . Largest Inventory Capacity 8 | 8 8 8 Average Capacity 7 | 6 8 8 Most Carried 8 | 5 8 8 Average Carried 6 | 2 6 6 Final Capacity 8 | 8 8 8 Final Carried 8 | 2 7 8 Class Distribution -------------------- 100% | Mutant Dominant Class ---------------- Mutant | -10/Materials Mutant | -9/Materials Resources | -11 -10 -9 ----------- Run | Yrd Mat Mat Matter Collected 427 | 240 117 70 Remotely . | . . . Salvage Created 751 | . 220 531 Parts 45 | . 17 28 Haulers Intercepted . | . . . Recyclers Shooed . | . . . Parts Field Recycled . | . . . Retrieved Matter . | . . . Parts Self-Destructed . | . . . Prevented . | . . . Kills | -11 -10 -9 ------- Run | Yrd Mat Mat Combat Hostiles Destroyed 18 | . 7 11 Guns 7 | . 7 . Cannons 11 | . . 11 Classes Destroyed 5 | . 4 1 Recycler 1 | . 1 . Watcher 3 | . 1 2 Swarmer 6 | . 6 . Grunt 10 | . 1 9 Sentry 2 | . . 2 Best Kill Streak 7 | . 7 7 Combat Bots Only 7 | . 6 7 Max Kills in Single Turn 2 | . 2 1 Gunslinging 1 | . 1 . Exploded . | . . . Melee . | . . . Uniques/NPCs Destroyed . | . . . Combat | -11 -10 -9 -------- Run | Yrd Mat Mat Hostile Shots Fired 95 | . 37 58 Missed 13 | . 8 5 Damage Taken 971 | . 320 651 Core 211 | . 72 139 Absorbed by Shields . | . . . Core Remaining (%) 85 | 100 71 . Volleys Fired 46 | . 12 34 Largest 2 | . 2 2 Hottest 120 | . 40 120 Shots Fired 90 | . 24 66 Gun 24 | . 24 . Cannon 66 | . . 66 Launcher . | . . . Special . | . . . Kinetic 24 | . 24 . Thermal 66 | . . 66 Explosive . | . . . Electromagnetic . | . . . Robot Hit Streak 7 | . 4 7 Robot Miss Streak 4 | . 4 4 Penetration Max . | . . . Secondary Targets 2 | . 2 . Max Gunslinging Chain 1 | . 1 . Shots Hit Robots 46 | . 11 35 Core Hits 25 | . 10 15 Critical Kills . | . . . Critical Parts Destroyed . | . . . Critical Strikes . | . . . Melee Attacks . | . . . Impact . | . . . Slashing . | . . . Piercing . | . . . Sneak Attacks . | . . . Combat Hostiles . | . . . Follow-up Attacks . | . . . Damage Inflicted 878 | . 186 692 Guns 186 | . 186 . Cannons 625 | . . 625 Explosions 67 | . . 67 Melee . | . . . Ramming . | . . . Kinetic 186 | . 186 . Thermal 625 | . . 625 Explosive 67 | . . 67 Electromagnetic . | . . . Impact . | . . . Slashing . | . . . Piercing . | . . . Highest Corruption . | . . . Average Corruption . | . . . Corruption Purged . | . . . Corruption Blocked . | . . . Overload Shots . | . . . Overflow Damage 8 | . . 8 Projectiles 5 | . . 5 Explosions 3 | . . 3 Melee . | . . . Knockbacks . | . . . Impact . | . . . Kinetic . | . . . Secondary . | . . . Self-Inflicted Damage 81 | . 81 . Shots 4 | . 4 . Rammed . | . . . Targets Rammed . | . . . Kicked . | . . . Crushed . | . . . Highest Temperature 762 | . 4 762 Average Temperature 208 | . 4 209 Received Heat Transfer 333 | . 6 327 Effects 12 | . . 12 Shutdowns 4 | . . 4 Energy Bleed 4 | . . 4 Matter Decay 3 | . . 3 Short Circuit 1 | . . 1 Siege Activations . | . . . Robots Corrupted . | . . . Combat Hostiles . | . . . Parts Fried . | . . . Impact Corruptions . | . . . Robots Melted . | . . . Combat Hostiles . | . . . Parts Melted 3 | . . 3 Heat Transferred 1332 | . . 1332 Parts Sabotaged . | . . . Parts Stolen . | . . . Parts Stripped . | . . . Power Chain Reactions 2 | . 2 . Alert | -11 -10 -9 ------- Run | Yrd Mat Mat Peak Influence 433 | . 255 433 Initial 107 | . . 107 Average 142 | . 86 230 Maximum Alert Level 2 | . 1 2 Low Security (%) 58 | 100 71 36 Level 1 40 | . 28 60 Level 2 1 | . . 3 Level 3 . | . . . Level 4 . | . . . Level 5 . | . . . High Security . | . . . Max Security . | . . . Squads Dispatched 5 | . 1 4 Investigation 1 | . . 1 Extermination . | . . . Reinforcement 4 | . 1 3 Assault . | . . . Garrison . | . . . Intercept . | . . . Searches Triggered . | . . . Construction Impeded . | . . . Haulers Reinforced . | . . . Active Scanning Responses . | . . . Cargo Convoy Interrupts . | . . . Stealth | -11 -10 -9 --------- Run | Yrd Mat Mat Distress Signals 4 | . 2 2 Communications Jammed . | . . . Distress Signals . | . . . Times Spotted 32 | . 10 22 Peak Tracking Total 8 | . 7 8 Tactical Retreats 1 | . . 1 Traps | -11 -10 -9 ------- Run | Yrd Mat Mat Traps Triggered 1 | . . 1 Indirectly . | . . . Trap Hack Attempts . | . . . Triggered . | . . . Disarmed . | . . . Reprogrammed . | . . . Reused . | . . . Traps Extracted . | . . . Installed . | . . . Triggered . | . . . Machines | -11 -10 -9 ---------- Run | Yrd Mat Mat Machines Disabled 5 | . 3 2 Max in Single Turn 2 | . 1 2 Machines Repaired . | . . . Machines Dismantled . | . . . Machines Sabotaged . | . . . Overloaded Fab Kills . | . . . Hacking | -11 -10 -9 --------- Run | Yrd Mat Mat Machines Accessed . | . . . Terminals . | . . . Fabricators . | . . . Repair Stations . | . . . Recycling Units . | . . . Scanalyzers . | . . . Garrison Access . | . . . Total Hacks . | . . . Successful . | . . . Failed . | . . . Catastrophic . | . . . Database Lockouts . | . . . Manual . | . . . Terminals . | . . . Fabricators . | . . . Repair Stations . | . . . Recycling Units . | . . . Scanalyzers . | . . . Garrison Access . | . . . Terminal Hacks . | . . . Fabricator Hacks . | . . . Repair Station Hacks . | . . . Recycling Unit Hacks . | . . . Scanalyzer . | . . . Garrison Access Hacks . | . . . Unauthorized Hacks . | . . . Terminals . | . . . Fabricators . | . . . Repair Stations . | . . . Recycling Units . | . . . Scanalyzers . | . . . Garrison Access . | . . . Data Cores Recovered . | . . . Used . | . . . Hacking Detections . | . . . Full Trace Events . | . . . Feedback Events . | . . . Feedback Blocked . | . . . Robot Schematics Acquired . | . . . Robots Built . | . . . Authchips . | . . . Time . | . . . Total Robot Build Rating . | . . . Part Schematics Acquired . | . . . Parts Built . | . . . Authchips . | . . . Time . | . . . Total Part Build Rating . | . . . Parts Repaired . | . . . Time . | . . . Parts Recycled . | . . . Recycled Matter . | . . . Retrieved Matter . | . . . Retrieved Components . | . . . Parts Scanalyzed . | . . . Part Schematics Acquired . | . . . Parts Damaged . | . . . Bothacking | -11 -10 -9 ------------ Run | Yrd Mat Mat Used RIF Installer . | . . . Robots Hacked . | . . . Non-combat . | . . . Combat . | . . . Robot Hacks Applied . | . . . Relay Couplers Released . | . . . Fabnet Peak Effective % . | . . . Robots Rewired . | . . . Allies Hacked . | . . . Hacks Repelled . | . . . Allies | -11 -10 -9 -------- Run | Yrd Mat Mat Total Allies . | . . . Largest Group . | . . . Highest-Rated Group . | . . . Highest-Rated Ally . | . . . Total Orders . | . . . Ally Attacks . | . . . Total Damage . | . . . Kills . | . . . Allies Corrupted . | . . . Allies Melted . | . . . Intel | -11 -10 -9 ------- Run | Yrd Mat Mat Robot Analysis Total . | . . . Derelict Logs Recovered . | . . . Drone Launches . | . . . Drone Recoveries . | . . . Exploration | -11 -10 -9 ------------- Run | Yrd Mat Mat Turns Passed 747 | 45 383 319 Spaces Moved 585 | 44 361 180 Core 20 | 20 . . Treads . | . . . Legs . | . . . Wheels 565 | 24 361 180 Hover . | . . . Flight . | . . . Fastest Speed 50 | 50 90 90 Average Speed 91 | 71 90 97 Slowest Speed 110 | 90 100 110 Overloaded Moves . | . . . Propulsion Burnouts . | . . . Robots Hopped . | . . . Cave-ins Triggered . | . . . Exploration Rate (%) 25 | 3 53 21 Regions Visited 2 Branch Regions . Pre-discovered Areas . | . . . Known Exits Taken . | . . . Unknown Exits Taken 2 | 1 1 . Scrap Searched . | . . . Spaces Dug . | . . . Terrain Destroyed 11 | . 6 5 Melee . | . . . Projectile . | . . . AOE 11 | . 6 5 Terrain Rammed . | . . . Walls Destroyed . | . . . Machines Disabled . | . . . Actions | -11 -10 -9 --------- Run | Yrd Mat Mat Total 715 | 57 396 262 Wait 27 | . 7 20 Move 583 | 43 360 180 Hop . | . . . Pick Up 28 | 8 10 10 Fast Attach . | . . . Attach 15 | 6 3 6 Detach 5 | . 1 4 Swap 1 | . . 1 Drop 10 | . 3 7 Fire 46 | . 12 34 Melee . | . . . Ram . | . . . Kick . | . . . Crush . | . . . Escape Stasis . | . . . Rewire . | . . . Trap . | . . . Miscellaneous . | . . . Route ------- -11/Scrapyard -10/Materials -9/Materials History --------- Turn | Location | Event 11 | -11/Scrapyard | Discovered new exit (range 15) 46 | -11/Scrapyard | Entered Materials 325 | -10/Materials | Build established: Mutant 337 | -10/Materials | Discovered new exit (range 10) 429 | -10/Materials | Entered another Materials area 429 | -9/Materials | Evolved 2 slots: Power x1, Utility x1 748 | -9/Materials | Self-destructed Last Messages --------------- 00724_ Power failure, Ion Engine shutdown. 00728_ Overheating: Matter decay (-75). 00728_ R-06 Scavenger collects Sml. Laser. 00734_ Overheating: Energy bleed (-30). 00735_ Y-45 Defender heat damages Lgt. Armor Plating, Beam Rifle, Hvy. Assault Rifle, Heat Sink. 00735_ Y-45 Defender destroyed. 00738_ Overheating: Energy bleed (-30). 00738_ G-34 Mercenary destroyed. 00739_ Power failure, Ion Engine shutdown. 00739_ Imp. Sensor Array destroyed. 00741_ G-34 Mercenary destroyed. 00742_ Arm. Wheel broken. 00742_ Overheating: Short circuit. 00743_ Overheating: Matter decay (-48). 00743_ Beam Cannon destroyed. 00745_ Power failure, Ion Engine shutdown. 00745_ Overheating: Energy bleed (-19). 00746_ G-34 Mercenary destroyed. 00747_ Overheating: Matter decay (-18). Map ----- +----------------------------------------------------+ | ?????????????????????????????????????????????????? | | ?????????????????????????????????????????????????? | | ?????????????????????????????????????????????????? | | ?????????????????????????????????????????????????? | | ?????????????????????????????????????????????????? | | ?????????????????????????????????????????????????? | | ?????????????????????????????????????????????????? | | ?????????????????????????????????????????????????? | | ?????????????????????????????????????????????????? | | ?????????????????????????????????????????????????? | | ?????????????????????????????????????????????????? | | ?????????????????????????????????????????????????? | | ?????????????????????????????????????????????????? | | ???? ????????????????????????????????????????????? | | ???? "?????????????????????????????????????????? | | ??? ???????????????????????????????????????? | | ????? ###########################??????????? | | ???????""" ?????????? | | ???????""" ?????????? | | ???????""" ??????? | | ?? #######%############??? #?????? | | ?? ??????#=#?????????????? #?????? | | ??? """ ???????#%#?????????????# #?????? | | ???????""" ???????#!#?????????????# ###???? | | ???????""" =% #####!###???????????# ? | | ??????? u/ [=%@[#???????????# | | ??????? a # *g!%=#???????????# | | ????? """ ##?????# """"" #???????????# | | ????? """ ???????# """"" #???????????# """ | | ???? """ ???????# """"" #???????????# """ | | ???? ########u""""" #???????????# """ | | ???? # """"" #???????????# | | ???????""" + """"" #???????????# | | ???????""" # """"" #???????????# """ "" | | ??? """ # #???????????# """ "" | | ??? #! ! !#??? ???????# """ "" | | ??? #############+####### | | ??? ^ [% | | ????############ !%* | | ???????????????# """ % | | ???????????????# ############ """ #########+# | | ???????????????# #??????????# """ #?????# | | ???????????????# #??????????# #?????# | | ???????????????# #??????????# #?????# "" | | ???????????????/ +??????????# #?????# "" | | ?????????????? # #??????????# / #?????# "" | | ????????????? # #??????????# [/ #?????# | | ???????????? ?+ ???????????# = #?????##### | | ???????????##??# ???????????# %#?????????? | | ??????????????? ???????????# #?????????? | +----------------------------------------------------+ Best States ------------- Heat Dissipation 28 Energy Generation 15 Energy Capacity 400 Matter Stores 300 Matter Capacity 300 Sight Range 16 Robot Scan Range 15 Terrain Scan Density 10 Evasion (%) 50 Item Schematics ----------------- None Robot Schematics ------------------ None Fabricated ------------ Nothing Alien Tech Used ----------------- None Achievements -------------- None Challenges ------------ None Game ------ Seed KineticChainStorage Manual? 0 Play Time 00:09:51 Cumulative 0.3 hours Start 2024.04.15 @ 00:59:30 End 2024.04.15 @ 01:10:34 Sessions 6 Manual Loads 0 Difficulty Rogue Special Mode None Game No. 2 Rogue 2 Adventurer 0 Explorer 0 Win Type - Total 0 Types 0/0/0/0/0/0/0/0/0 Lore% 0 Gallery% 1 Achievement% 1 Wizard Run 0 Options --------- Layout 0 ASCII 0 Keyboard 1 Movement Numpad Keybinds 0 Fullscreen 1 Font 14/SmallcapsGlow Map View 72x54 Zoom Use 0% Tactical HUD 1 Map Filters NONE Filters NONE Steam 0 RUN: 98412f53-4cc7-43ed-9d82-7bc5df44c7fe